fUSD/lending_fUSD_20241206
["ID","MTS","AMOUNT","RATE_DAILY","PERIOD"]
[344460842,1733496681991,-555.60190736,9.589e-05,2]
[344460843,1733496682001,-500.0,9.589e-05,2]
[344460844,1733496682010,-586.02,9.589e-05,2]
[344460845,1733496682019,-500.0,9.589e-05,2]
[344460846,1733496682029,-500.0,9.589e-05,2]
[344460847,1733496682041,-500.0,9.589e-05,2]
[344460848,1733496682051,-586.02,9.589e-05,2]
[344460849,1733496682061,-987.12,9.589e-05,2]
[344460850,1733496682071,-500.0,9.589e-05,2]
[344460851,1733496682080,-238.86722179,9.589e-05,2]
[344460852,1733496682490,-500.0,9.589e-05,2]
[344460853,1733496682520,-987.12,9.589e-05,2]
[344460854,1733496682554,-500.0,9.589e-05,2]
[344460855,1733496682564,-500.0,9.589e-05,2]
[344460856,1733496682575,-586.02,9.589e-05,2]
[344460857,1733496682585,-987.12,9.589e-05,2]
[344460858,1733496682595,-500.0,9.589e-05,2]
[344460859,1733496682606,-500.0,9.589e-05,2]
[344460860,1733496682616,-500.0,9.589e-05,2]
[344460861,1733496682626,-987.12,9.589e-05,2]
[344460862,1733496682640,-500.0,9.589e-05,2]
[344460863,1733496682650,-586.02,9.589e-05,2]
[344460864,1733496682660,-500.0,9.589e-05,2]
[344460865,1733496682670,-987.12,9.589e-05,2]
[344460866,1733496682680,-500.0,9.589e-05,2]
[344460867,1733496682690,-586.02,9.589e-05,2]
[344460868,1733496682699,-500.0,9.589e-05,2]
[344460869,1733496682709,-987.12,9.589e-05,2]
[344460870,1733496682719,-500.0,9.589e-05,2]
[344460871,1733496682729,-500.0,9.589e-05,2]
[344460872,1733496682739,-586.02,9.589e-05,2]
[344460873,1733496682749,-500.0,9.589e-05,2]
[344460874,1733496682759,-500.0,9.589e-05,2]
[344460875,1733496682768,-500.0,9.589e-05,2]
[344460876,1733496682778,-987.12,9.589e-05,2]
[344460877,1733496682788,-500.0,9.589e-05,2]
[344460878,1733496682798,-586.02,9.589e-05,2]
[344460879,1733496682808,-500.0,9.589e-05,2]
[344460880,1733496682817,-500.0,9.589e-05,2]
[344460881,1733496682829,-586.02,9.589e-05,2]
[344460882,1733496682839,-500.0,9.589e-05,2]
[344460883,1733496682849,-500.0,9.589e-05,2]
[344460884,1733496682859,-500.0,9.589e-05,2]
[344460885,1733496682868,-586.02,9.589e-05,2]
[344460886,1733496682883,-987.12,9.589e-05,2]
[344460887,1733496682892,-500.0,9.589e-05,2]
[344460888,1733496682901,-500.0,9.589e-05,2]
[344460889,1733496682911,-586.02,9.589e-05,2]
[344460890,1733496682920,-987.12,9.589e-05,2]
[344460891,1733496682930,-500.0,9.589e-05,2]
[344460892,1733496682939,-500.0,9.589e-05,2]
[344460893,1733496682948,-500.0,9.589e-05,2]
[344460894,1733496682957,-987.12,9.589e-05,2]
[344460895,1733496682966,-500.0,9.589e-05,2]
[344460896,1733496682975,-500.0,9.589e-05,2]
[344460897,1733496682985,-586.02,9.589e-05,2]
[344460898,1733496682995,-311.03214936,9.589e-05,2]
[344460899,1733496683004,-500.0,9.589e-05,2]
[344460900,1733496683013,-987.12,9.589e-05,2]
[344460901,1733496683023,-500.0,9.589e-05,2]
[344460902,1733496683034,-500.0,9.589e-05,2]
[344460903,1733496683043,-586.02,9.589e-05,2]
[344460904,1733496683053,-500.0,9.589e-05,2]
[344460905,1733496683063,-987.12,9.589e-05,2]
[344460906,1733496683072,-518.94286988,9.589e-05,2]
[344460907,1733496683081,-500.0,9.589e-05,2]
[344460908,1733496683090,-153.35362852,9.589e-05,2]
[344460909,1733496683100,-17.87415663,9.589e-05,2]
[344460910,1733496683174,-568.15227166,9.589e-05,2]
[344460911,1733496683184,-500.0,9.589e-05,2]
[344460912,1733496683194,-987.12,9.589e-05,2]
[344460913,1733496683203,-520.78576514,9.589e-05,2]
[344460914,1733496683212,-500.0,9.589e-05,2]
[344460915,1733496683221,-987.12,9.589e-05,2]
[344460916,1733496683231,-500.0,9.589e-05,2]
[344460917,1733496683240,-987.12,9.589e-05,2]
[344460918,1733496683250,-500.0,9.589e-05,2]
[344460919,1733496683259,-987.12,9.589e-05,2]
[344460920,1733496683268,-500.0,9.589e-05,2]
[344460921,1733496683278,-987.12,9.589e-05,2]
[344460922,1733496683287,-395.16359572,9.589e-05,2]
[344460923,1733496683297,-987.12,9.589e-05,2]
[344460924,1733496683307,-987.12,9.589e-05,2]
[344460925,1733496683316,-1348.05,9.589e-05,2]
[344460926,1733496683326,-987.17233447,9.589e-05,2]
[344460927,1733496683336,-1348.05,9.589e-05,2]
[344460928,1733496683345,-313.82289035,9.589e-05,2]
[344460929,1733496683355,-1348.05,9.589e-05,2]
[344460930,1733496683364,-1348.05,9.589e-05,2]
[344460931,1733496683374,-1348.05,9.589e-05,2]
[344460932,1733496683388,-1348.05,9.589e-05,2]
[344460933,1733496683402,-1348.05,9.589e-05,2]
[344460934,1733496683411,-500.0,9.589e-05,2]
[344460935,1733496683420,-1348.05,9.589e-05,2]
[344460936,1733496683430,-500.0,9.589e-05,2]
[344460937,1733496683441,-540.61786993,9.589e-05,2]
[344460938,1733496683450,-1348.05,9.589e-05,2]
[344460939,1733496683460,-1348.05,9.589e-05,2]
[344460940,1733496683470,-1348.05,9.589e-05,2]
[344460941,1733496683480,-1348.05,9.589e-05,2]
[344460942,1733496683489,-1348.05,9.589e-05,2]
[344460943,1733496683499,-500.0,9.589e-05,2]
[344460944,1733496683508,-1348.05,9.589e-05,2]
[344460945,1733496683518,-500.0,9.589e-05,2]
[344460946,1733496683529,-1348.05,9.589e-05,2]
[344460947,1733496683540,-500.0,9.589e-05,2]
[344460948,1733496683551,-1348.05,9.589e-05,2]
[344460949,1733496683560,-500.0,9.589e-05,2]
[344460950,1733496683569,-500.0,9.589e-05,2]
[344460951,1733496683579,-1348.05,9.589e-05,2]
[344460952,1733496683590,-500.0,9.589e-05,2]
[344460953,1733496683600,-500.0,9.589e-05,2]
[344460954,1733496683610,-1348.05,9.589e-05,2]
[344460955,1733496683620,-500.0,9.589e-05,2]
[344460956,1733496683633,-500.0,9.589e-05,2]
[344460957,1733496683643,-1348.05,9.589e-05,2]
[344460958,1733496683652,-500.0,9.589e-05,2]
[344460959,1733496683662,-500.0,9.589e-05,2]
[344460960,1733496683673,-1348.05,9.589e-05,2]
[344460961,1733496683683,-500.0,9.589e-05,2]
[344460962,1733496683693,-500.0,9.589e-05,2]
[344460963,1733496683704,-1348.05,9.589e-05,2]
[344460964,1733496683714,-500.0,9.589e-05,2]
[344460965,1733496683723,-500.0,9.589e-05,2]
[344460966,1733496683733,-1348.05,9.589e-05,2]
[344460967,1733496683742,-500.0,9.589e-05,2]
[344460968,1733496683752,-366.85938756,9.589e-05,2]
[344460969,1733496683763,-500.0,9.589e-05,2]
[344460970,1733496683772,-712.82630138,9.589e-05,2]
[344460971,1733496683839,-427.69001,9.589e-05,2]
[344460972,1733496683969,-207.53368862,9.589e-05,2]
[344460973,1733496683978,-500.0,9.589e-05,2]
[344460974,1733496683988,-500.0,9.589e-05,2]
[344460975,1733496683997,-1348.26290863,9.589e-05,2]
[344460976,1733496684006,-500.0,9.589e-05,2]
[344460977,1733496684016,-500.0,9.589e-05,2]
[344460978,1733496684026,-500.0,9.589e-05,2]
[344460979,1733496684036,-500.0,9.589e-05,2]
[344460980,1733496684046,-175.86475977,9.589e-05,2]
[344460981,1733496684056,-500.0,9.589e-05,2]
[344460982,1733496684065,-274.40717389,9.589e-05,2]
[344460983,1733496684085,-225.59282611,9.589e-05,2]
[344460984,1733496684095,-500.0,9.589e-05,2]
[344460985,1733496684104,-170.79313695,9.589e-05,2]
[344460986,1733496684113,-500.0,9.589e-05,2]
[344460987,1733496684123,-500.0,9.589e-05,2]
[344460988,1733496684135,-500.0,9.589e-05,2]
[344460989,1733496684144,-500.0,9.589e-05,2]
[344460990,1733496684154,-500.0,9.589e-05,2]
[344460991,1733496684163,-500.0,9.589e-05,2]
[344460992,1733496684173,-24.45089756,9.589e-05,2]
[344460993,1733496684313,-475.54910244,9.589e-05,2]
[344460994,1733496684322,-500.0,9.589e-05,2]
[344460995,1733496684332,-500.0,9.589e-05,2]
[344460996,1733496684341,-500.0,9.589e-05,2]
[344460997,1733496684351,-500.0,9.589e-05,2]
[344460998,1733496684360,-500.0,9.589e-05,2]
[344460999,1733496684370,-500.0,9.589e-05,2]
[344461000,1733496684383,-455.35089756,9.589e-05,2]
[344461024,1733497832114,-174.15,6.059e-05,2]
[344461025,1733497832123,-499.48,7.25e-05,2]
[344461026,1733497832134,-150.0,7.288e-05,2]
[344461027,1733497832145,-496.71,7.289e-05,2]
[344461028,1733497832154,-503.44,7.328e-05,2]
[344461029,1733497832164,-190.40580506,7.404e-05,2]
[344461030,1733497832174,-505.48,7.404e-05,2]
[344461031,1733497832189,-499.27,7.558e-05,2]
[344461032,1733497832200,-5476.81909284,7.564e-05,2]
[344461033,1733497832230,-530.83166823,7.564e-05,2]
[344461034,1733497832242,-17892.34923893,7.564e-05,2]
[344461035,1733497832254,-496.99,7.564e-05,2]
[344461036,1733497832263,-174.15,7.573e-05,2]
[344461037,1733497832274,-178.35,7.578e-05,2]
[344461038,1733497832289,-200.0,7.615e-05,2]
[344461039,1733497832299,-156.72,7.616e-05,2]
[344461040,1733497832309,-369.81,7.621e-05,2]
[344461041,1733497832320,-250.0,7.636e-05,2]
[344461042,1733497832330,-250.0,7.641e-05,2]
[344461043,1733497832340,-117.4927593,7.647e-05,2]
[344461044,1733497832384,-32.5072407,7.647e-05,2]
[344461045,1733497832394,-567.0,7.919e-05,2]
[344461046,1733497832404,-1262.0,7.919e-05,2]
[344461047,1733497832414,-631.0,7.919e-05,2]
[344461048,1733497832423,-2004.0,7.919e-05,2]
[344461049,1733497832437,-1893.0,7.919e-05,2]
[344461050,1733497832447,-563.0,7.919e-05,2]
[344461051,1733497832456,-242.8610593,7.919e-05,2]
[344461052,1733497832468,-3518.1389407,7.919e-05,2]
[344461053,1733497832478,-816.0,7.919e-05,2]
[344461054,1733497832488,-1252.0,7.919e-05,2]
[344461055,1733497832497,-535.0,7.919e-05,2]
[344461056,1733497832507,-1884.06105923,7.919e-05,2]
[344461057,1733497832541,-1644.93894077,7.919e-05,2]
[344461058,1733497832550,-973.0,7.919e-05,2]
[344461059,1733497832560,-309.594,7.919e-05,2]
[344461060,1733497832569,-4851.04,7.919e-05,2]
[344461061,1733497832578,-150.0,7.919e-05,2]
[344461062,1733497832588,-1581.994,8.055e-05,2]
[344461064,1733497832597,-188.051,8.055e-05,2]
[344461066,1733497832607,-150.99,8.055e-05,2]
[344461067,1733497832616,-999.99,8.055e-05,2]
[344461070,1733497832626,-4842.55,8.055e-05,2]
[344461072,1733497832636,-2394.6,8.055e-05,2]
[344461073,1733497832646,-736.39,8.055e-05,2]
[344461074,1733497832655,-299.99,8.055e-05,2]
[344461075,1733497832664,-150.99,8.055e-05,2]
[344461076,1733497832674,-154.3,8.098e-05,2]
[344461077,1733497832687,-9881.2,8.098e-05,2]
[344461078,1733497832697,-154.3,8.101e-05,2]
[344461079,1733497832707,-154.3,8.104e-05,2]
[344461080,1733497832716,-154.3,8.107e-05,2]
[344461081,1733497832726,-154.3,8.111e-05,2]
[344461082,1733497832740,-154.3,8.114e-05,2]
[344461083,1733497832751,-154.3,8.117e-05,2]
[344461084,1733497832761,-154.3,8.12e-05,2]
[344461085,1733497832774,-154.3,8.123e-05,2]
[344461086,1733497832784,-154.3,8.126e-05,2]
[344461087,1733497832793,-154.3,8.129e-05,2]
[344461088,1733497832803,-154.3,8.132e-05,2]
[344461089,1733497832814,-154.3,8.136e-05,2]
[344461090,1733497832824,-154.3,8.139e-05,2]
[344461091,1733497832834,-504.75,8.159e-05,2]
[344461092,1733497832844,-508.24,8.16e-05,2]
[344461093,1733497832853,-493.37,8.16e-05,2]
[344461094,1733497832864,-250.0,8.21e-05,2]
[344461095,1733497832874,-251.3,8.219e-05,2]
[344461096,1733497832884,-3674.45,8.219e-05,2]
[344461097,1733497832894,-923.06,8.219e-05,2]
[344461098,1733497832904,-1000.0,8.219e-05,2]
[344461099,1733497832914,-857.32,8.63e-05,2]
[344461100,1733497832924,-251.3,8.676e-05,2]
[344461101,1733497832937,-200.0,8.74e-05,2]
[344461102,1733497832947,-2481.02,8.753e-05,5]
[344461103,1733497832956,-384.42,8.753e-05,5]
[344461104,1733497832966,-1800.0,8.8e-05,3]
[344461105,1733497832976,-178.35,8.841e-05,2]
[344461106,1733497832986,-3600.0,8.9e-05,3]
[344461107,1733497832996,-76409.0,9e-05,3]
[344461108,1733497833006,-6975.0,9e-05,2]
[344461109,1733497833016,-5500.0,9e-05,3]
[344461110,1733497833031,-156.6549625,9e-05,2]
[344461111,1733497833042,-768.15,9.041e-05,2]
[344461112,1733497833052,-174.15,9.088e-05,2]
[344461113,1733497833062,-780.147,9.11e-05,2]
[344461114,1733497833072,-251.3,9.132e-05,2]
[344461115,1733497833083,-292.35,9.178e-05,2]
[344461116,1733497833092,-1000.0,9.247e-05,2]
[344461117,1733497833103,-3851.358,9.288e-05,2]
[344461118,1733497833113,-6767.44,9.387e-05,2]
[344461119,1733497833123,-823.5307,9.388e-05,2]
[344461120,1733497833133,-1000.0,9.388e-05,2]
[344461121,1733497833143,-2500.0,9.388e-05,2]
[344461122,1733497833152,-2500.0,9.388e-05,2]
[344461123,1733497833162,-846.0,9.452e-05,2]
[344461124,1733497833171,-500.0,9.463e-05,2]
[344461125,1733497833184,-2557.11200561,9.48e-05,2]
[344461126,1733497833195,-500.0,9.487e-05,2]
[344461127,1733497833209,-500.0,9.487e-05,2]
[344461128,1733497833220,-500.0,9.487e-05,2]
[344461129,1733497833230,-500.0,9.487e-05,2]
[344461130,1733497833241,-500.0,9.487e-05,2]
[344461131,1733497833251,-500.0,9.487e-05,2]
[344461132,1733497833261,-500.0,9.487e-05,2]
[344461133,1733497833271,-500.0,9.487e-05,2]
[344461134,1733497833282,-500.0,9.487e-05,2]
[344461135,1733497833292,-174.60261009,9.487e-05,2]
[344461136,1733497833302,-500.0,9.487e-05,2]
[344461137,1733497833312,-500.0,9.487e-05,2]
[344461138,1733497833322,-500.0,9.487e-05,2]
[344461139,1733497833332,-500.0,9.487e-05,2]
[344461140,1733497833342,-500.0,9.487e-05,2]
[344461141,1733497833352,-500.0,9.487e-05,2]
[344461142,1733497833362,-500.0,9.487e-05,2]
[344461143,1733497833372,-500.0,9.487e-05,2]
[344461144,1733497833382,-500.0,9.487e-05,2]
[344461145,1733497833392,-500.0,9.487e-05,2]
[344461146,1733497833402,-583.55664887,9.487e-05,2]
[344461147,1733497833412,-647.910039,9.487e-05,2]
[344461148,1733497833422,-500.0,9.487e-05,2]
[344461149,1733497833433,-500.0,9.487e-05,2]
[344461150,1733497833442,-500.0,9.487e-05,2]
[344461151,1733497833452,-500.0,9.487e-05,2]
[344461152,1733497833462,-500.0,9.487e-05,2]
[344461153,1733497833471,-500.0,9.487e-05,2]
[344461154,1733497833481,-208.36972892,9.488e-05,2]
[344461155,1733497833491,-683.0,9.488e-05,2]
[344461156,1733497833501,-18916.4735,9.488e-05,2]
[344461157,1733497833511,-29741.4488,9.488e-05,2]
[344461158,1733497833521,-25577.2629,9.488e-05,2]
[344461159,1733497833531,-350889.23097617,9.488e-05,2]
[344461160,1733497833544,-2821.92430489,9.488e-05,2]
[344461161,1733497833598,-497.775,9.488e-05,2]
[344461162,1733497833610,-33547.16505795,9.488e-05,2]
[344461180,1733497838189,-1500.0,7.736e-05,2]
[344461181,1733497838199,-501.54767524,9.463e-05,2]
[344461182,1733497838208,-3937.63125242,9.488e-05,2]
[344461183,1733497838254,-1998.2,9.488e-05,2]
[344461184,1733497838267,-1658.997738,9.488e-05,2]
[344461185,1733497838278,-9910.8,9.488e-05,2]
[344461186,1733497838355,-4005.69751426,9.488e-05,2]
[344461187,1733497838367,-1990.83,9.488e-05,2]
[344461188,1733497838378,-16733.66087097,9.488e-05,2]
[344461189,1733497838389,-32672.1589,9.488e-05,2]
[344461315,1733497840404,-3731.75822172,9.488e-05,2]
[344461316,1733497840415,-69867.3453,9.488e-05,2]
[344461317,1733497840426,-601.95670171,9.488e-05,2]
[344461318,1733497840540,-992.21,9.488e-05,2]
[344461319,1733497840552,-3767.92733965,9.488e-05,2]
[344461320,1733497840563,-3398.59889456,9.488e-05,2]
[344461321,1733497840575,-3979.5141803,9.488e-05,2]
[344461322,1733497840586,-1791.91517066,9.488e-05,2]
[344461323,1733497840597,-19906.972875,9.488e-05,2]
[344461526,1733497843142,-666.77375835,9.488e-05,2]
[344461527,1733497843153,-751.50657008,9.488e-05,2]
[344461528,1733497843164,-948.18799716,9.488e-05,2]
[344461529,1733497843240,-6028.40940246,9.488e-05,2]
[344461530,1733497843257,-3017.81925134,9.488e-05,2]
[344461531,1733497843269,-5365.0786916,9.488e-05,2]
[344461532,1733497843280,-9474.68868076,9.488e-05,2]
[344461533,1733497843292,-5029.56316384,9.488e-05,2]
[344461534,1733497843332,-472625.37092573,9.488e-05,2]
[344461535,1733497843343,-8046.30762192,9.488e-05,2]
[344461536,1733497843354,-17847.10074267,9.488e-05,2]
[344461537,1733497843421,-1142.6499999,9.488e-05,2]
[344461538,1733497843432,-2313.9666447,9.488e-05,2]
[344461539,1733497843445,-3971.89999999,9.488e-05,2]
[344461540,1733497843507,-454.46833774,9.488e-05,2]
[344461541,1733497843518,-680.50000019,9.488e-05,2]
[344461542,1733497843529,-340.1,9.488e-05,2]
[344461556,1733497846078,-2500.0,9.388e-05,2]
[344461558,1733497846087,-495130.0,9.488e-05,2]
[344461559,1733497846161,-56520.49999815,9.488e-05,2]
[344461560,1733497846174,-3080.45130329,9.488e-05,2]
[344461561,1733497846187,-4677.62886,9.488e-05,2]
[344461562,1733497846210,-14910.46610161,9.488e-05,2]
[344461563,1733497846312,-7510.0,9.488e-05,2]
[344461564,1733497846327,-3985.70000001,9.488e-05,2]
[344461565,1733497846340,-11923.1,9.488e-05,2]
[344461566,1733497846353,-3080.1162272,9.488e-05,2]
[344461567,1733497846369,-3158.99273214,9.488e-05,2]
[344461568,1733497846382,-11965.79999967,9.488e-05,2]
[344461569,1733497846466,-268.21172571,9.488e-05,2]
[344461570,1733497846481,-46389.36026553,9.488e-05,2]
[344461571,1733497846492,-11714.1807,9.488e-05,2]
[344461572,1733497846503,-20000.0,9.489e-05,2]
[344461573,1733497846514,-4499.7518,9.489e-05,2]
[344461574,1733497846525,-13501.60744954,9.489e-05,2]
[344461575,1733497846538,-109755.47445046,9.489e-05,2]
[344461576,1733497846549,-4562.72,9.489e-05,2]
[344461577,1733497846560,-5810.554,9.489e-05,2]
[344461578,1733497846572,-7880.6610449,9.581e-05,2]
[344461579,1733497846583,-887.7381227,9.581e-05,2]
[344461580,1733497846594,-1391.9710918,9.581e-05,2]
[344461581,1733497846605,-334.7126341,9.581e-05,2]
[344461582,1733497846615,-2000.0,9.588e-05,2]
[344461583,1733497846626,-625.1355,9.588e-05,2]
[344461584,1733497846637,-1040.34168018,9.588e-05,3]
[344461585,1733497846647,-250000.0,9.588e-05,2]
[344461586,1733497846657,-2207519.58983292,9.589e-05,2]
[344461587,1733497846669,-8021.39688354,9.589e-05,2]
[344461588,1733497846682,-19507.05773259,9.589e-05,2]
[344461589,1733497846702,-15075.7249111,9.589e-05,2]
[344461592,1733497846854,-980283.02119279,9.589e-05,2]
[344461593,1733497846866,-43858.40226414,9.589e-05,2]
[344461662,1733499033157,-463.84473445,6.999e-05,2]
[344461663,1733499033168,-500.0,6.999e-05,2]
[344461664,1733499033181,-231.50629432,6.999e-05,2]
[344461665,1733499033191,-349.76778211,6.999e-05,2]
[344461666,1733499033201,-1079794.10047149,7e-05,2]
[344461667,1733499033211,-167.99,7.397e-05,2]
[344461668,1733499033221,-505.51,7.398e-05,2]
[344461669,1733499033230,-503.43,7.398e-05,2]
[344461670,1733499033242,-498.22,7.398e-05,2]
[344461671,1733499033251,-503.69,7.398e-05,2]
[344461672,1733499033261,-499.77,7.398e-05,2]
[344461673,1733499033271,-499.88,7.399e-05,2]
[344461674,1733499033280,-494.71,7.399e-05,2]
[344461675,1733499033290,-492.44,7.4e-05,2]
[344461676,1733499033299,-500.13,7.401e-05,2]
[344461677,1733499033308,-498.47,7.402e-05,2]
[344461678,1733499033318,-1055.98377968,7.404e-05,2]
[344461679,1733499033327,-497.76,7.404e-05,2]
[344461680,1733499033336,-9999.99,7.404e-05,2]
[344461681,1733499033346,-498.52,7.406e-05,2]
[344461682,1733499033355,-150.99,7.406e-05,2]
[344461683,1733499033365,-150.99,7.406e-05,2]
[344461684,1733499033375,-299.99,7.406e-05,2]
[344461685,1733499033384,-509.04,7.409e-05,2]
[344461686,1733499033394,-1051.0,7.413e-05,2]
[344461687,1733499033405,-508.87,7.413e-05,2]
[344461688,1733499033415,-503.89,7.419e-05,2]
[344461689,1733499033425,-502.75,7.426e-05,2]
[344461690,1733499033434,-495.06,7.436e-05,2]
[344461691,1733499033445,-502.51,7.449e-05,2]
[344461692,1733499033455,-495.25,7.467e-05,2]
[344461693,1733499033464,-1975.24,7.467e-05,2]
[344461694,1733499033474,-500.2,7.49e-05,2]
[344461695,1733499033484,-250.0,7.5e-05,2]
[344461696,1733499033493,-200.0,7.511e-05,2]
[344461697,1733499033503,-23900.0,7.52e-05,2]
[344461698,1733499033512,-508.27,7.52e-05,2]
[344461699,1733499033526,-150.0,7.539e-05,2]
[344461700,1733499033536,-499.13,7.562e-05,2]
[344461701,1733499033546,-507.23,7.616e-05,2]
[344461702,1733499033562,-200.0,7.678e-05,2]
[344461703,1733499033572,-200.0,7.679e-05,2]
[344461704,1733499033582,-200.0,7.681e-05,2]
[344461705,1733499033591,-200.0,7.682e-05,2]
[344461706,1733499033601,-200.0,7.683e-05,2]
[344461707,1733499033611,-200.0,7.687e-05,2]
[344461708,1733499033621,-200.0,7.688e-05,2]
[344461709,1733499033630,-200.0,7.691e-05,2]
[344461710,1733499033639,-491.71,7.691e-05,2]
[344461711,1733499033649,-200.0,7.698e-05,2]
[344461712,1733499033658,-200.0,7.698e-05,2]
[344461713,1733499033668,-200.0,7.699e-05,2]
[344461714,1733499033680,-200.0,7.7e-05,2]
[344461715,1733499033689,-504.07,7.789e-05,2]
[344461716,1733499033698,-503.66,7.92e-05,2]
[344461717,1733499033708,-250.0,7.952e-05,2]
[344461718,1733499033717,-250.0,7.952e-05,2]
[344461719,1733499033727,-685.86,7.952e-05,2]
[344461720,1733499033736,-166.69,7.993e-05,2]
[344461721,1733499033746,-15000.0,8e-05,2]
[344461722,1733499033755,-495.88,8.097e-05,2]
[344461723,1733499033764,-242.8,8.141e-05,2]
[344461724,1733499033773,-631.0,8.178e-05,2]
[344461725,1733499033783,-2004.0,8.178e-05,2]
[344461726,1733499033793,-563.0,8.178e-05,2]
[344461727,1733499033802,-1893.0,8.178e-05,2]
[344461728,1733499033812,-1252.0,8.178e-05,2]
[344461729,1733499033822,-816.0,8.178e-05,2]
[344461730,1733499033832,-3761.0,8.178e-05,2]
[344461731,1733499033842,-535.0,8.178e-05,2]
[344461732,1733499033852,-3529.0,8.178e-05,2]
[344461733,1733499033862,-973.0,8.178e-05,2]
[344461734,1733499033873,-278.839,8.178e-05,2]
[344461735,1733499033883,-1602.922,8.178e-05,2]
[344461736,1733499033894,-1262.0,8.178e-05,2]
[344461737,1733499033905,-150.0,8.178e-05,2]
[344461738,1733499033915,-567.0,8.178e-05,2]
[344461739,1733499033928,-507.98,8.217e-05,2]
[344461740,1733499033939,-497.82,8.217e-05,2]
[344461741,1733499033949,-1000.0,8.219e-05,2]
[344461742,1733499033960,-175.91,8.219e-05,2]
[344461743,1733499033970,-3490.72,8.219e-05,2]
[344461744,1733499033980,-461.53,8.219e-05,2]
[344461745,1733499033990,-2151.322,8.299e-05,2]
[344461746,1733499034000,-190.007,8.299e-05,2]
[344461747,1733499034009,-493.74,8.418e-05,2]
[344461748,1733499034019,-301.947018,8.46e-05,3]
[344461749,1733499034028,-150.0,8.461e-05,2]
[344461750,1733499034037,-175.91,8.676e-05,2]
[344461751,1733499034046,-493.65,8.739e-05,2]
[344461752,1733499034055,-200.0,8.74e-05,2]
[344461753,1733499034065,-500.0,8.795e-05,2]
[344461754,1733499034074,-151.96,8.831e-05,2]
[344461755,1733499034083,-151.96,8.836e-05,2]
[344461756,1733499034093,-151.96,8.841e-05,2]
[344461757,1733499034103,-151.96,8.846e-05,2]
[344461758,1733499034113,-151.96,8.85e-05,2]
[344461759,1733499034122,-151.96,8.855e-05,2]
[344461760,1733499034132,-151.96,8.86e-05,2]
[344461761,1733499034141,-151.96,8.865e-05,2]
[344461762,1733499034155,-151.96,8.87e-05,2]
[344461763,1733499034165,-151.96,8.875e-05,2]
[344461764,1733499034177,-685.86,8.946e-05,2]
[344461765,1733499034187,-8813.49908475,9e-05,2]
[344461766,1733499034197,-502.3,9.037e-05,2]
[344461767,1733499034207,-1500.0,9.07e-05,2]
[344461768,1733499034217,-1500.0,9.106e-05,2]
[344461769,1733499034228,-747.358,9.11e-05,2]
[344461770,1733499034238,-175.91,9.132e-05,2]
[344461771,1733499034248,-242.8,9.159e-05,2]
[344461772,1733499034258,-1000.0,9.247e-05,2]
[344461773,1733499034268,-6120.4974,9.289e-05,2]
[344461774,1733499034278,-2028.0399,9.289e-05,2]
[344461775,1733499034288,-1300.0,9.3e-05,3]
[344461776,1733499034299,-5643.57887991,9.389e-05,2]
[344461777,1733499034308,-2700.0,9.4e-05,3]
[344461778,1733499034318,-21499.61784843,9.456e-05,2]
[344461779,1733499034328,-2500.0,9.488e-05,2]
[344461780,1733499034337,-509.7,9.488e-05,2]
[344461781,1733499034347,-508.62,9.488e-05,2]
[344461782,1733499034356,-2500.0,9.489e-05,2]
[344461783,1733499034366,-400.13220232,9.5e-05,2]
[344461784,1733499034375,-819.97113412,9.5e-05,10]
[344461785,1733499034384,-1000.0,9.5e-05,2]
[344461786,1733499034394,-1000.0,9.5e-05,2]
[344461787,1733499034403,-1074.0,9.5e-05,2]
[344461788,1733499034412,-1000.0,9.5e-05,2]
[344461789,1733499034422,-1000.0,9.5e-05,2]
[344461790,1733499034433,-1000.0,9.5e-05,2]
[344461791,1733499034442,-1000.0,9.5e-05,2]
[344461792,1733499034451,-1000.0,9.5e-05,2]
[344461793,1733499034460,-1000.0,9.5e-05,2]
[344461794,1733499034470,-1000.0,9.5e-05,2]
[344461795,1733499034479,-866.0,9.5e-05,3]
[344461796,1733499034487,-1000.0,9.5e-05,2]
[344461797,1733499034496,-4100.0,9.5e-05,3]